fUSD/lending_fUSD_20251228
["ID","MTS","AMOUNT","RATE_DAILY","PERIOD"]
[399948145,1766927579222,170.63315657,0.00030136,120]
[399948146,1766927580355,608.02411903,0.00030136,120]
[399948147,1766927580838,164.70783217,0.00030136,120]
[399948148,1766927587112,500.0,0.00030136,120]
[399948149,1766927587365,432.59324071,0.00030136,120]
[399948150,1766927588657,203.37318774,0.00030136,120]
[399948151,1766927590939,246.98624194,0.00030136,120]
[399948152,1766927592685,170.97122082,0.00030136,120]
[399948153,1766927595804,407.10426803,0.00030136,120]
[399948154,1766927595894,178.54601372,0.00030136,120]
[399948155,1766927596219,500.0,0.00030136,120]
[399948156,1766927596444,159.51601707,0.00030136,120]
[399948157,1766927602487,500.0,0.00030136,120]
[399948158,1766927602724,385.54883637,0.00030136,120]
[399948159,1766927605663,491.41917401,0.00030136,120]
[399948160,1766927607194,9742.77,0.0001342,2]
[399948161,1766927613879,223.86835906,0.00030136,120]
[399948162,1766927614389,178.89258352,0.00030136,120]
[399948163,1766927616161,178.65738891,0.00030136,120]
[399948164,1766927617719,217.51385196,0.00030136,120]
[399948165,1766927618525,299.43546742,0.00030136,120]
[399948166,1766927622400,216.07729602,0.00030136,120]
[399948167,1766927622803,265.72128077,0.00030136,120]
[399948168,1766927625713,178.15797028,0.00030136,120]
[399948169,1766927626019,500.0,0.00030136,120]
[399948170,1766927626269,408.6494441,0.00030136,120]
[399948171,1766927628671,560.02959712,0.00030136,120]
[399948172,1766927629918,500.0,0.00030136,120]
[399948174,1766927630176,269.20514305,0.00030136,120]
[399948175,1766927630210,398.75050348,0.00030136,120]
[399948176,1766927632076,191.67634317,0.00030136,120]
[399948177,1766927648463,298.4449422,0.00030136,120]
[399948178,1766927653725,158.59535967,0.00030136,120]
[399948179,1766927659259,207.79101921,0.00030136,120]
[399948204,1766927692451,425.0163649,0.00030136,120]
[399948205,1766927707980,407.5875969,0.00030136,120]
[399948206,1766927715642,500.0,0.00030136,120]
[399948207,1766927715898,213.56087598,0.00030136,120]
[399948208,1766927730620,158.13800165,0.00030136,120]
[399948209,1766927731739,245.10186267,0.00030136,120]
[399948210,1766927732188,400.0,0.00030136,120]
[399948211,1766927733976,338.19041475,0.00030136,120]
[399948212,1766927735867,500.0,0.00030136,120]
[399948213,1766927736122,500.0,0.00030136,120]
[399948214,1766927736371,500.0,0.00030136,120]
[399948215,1766927736598,260.74529034,0.00030136,120]
[399948216,1766927739689,410.61247741,0.00030136,120]
[399948217,1766927742943,413.00236916,0.00030136,120]
[399948218,1766927745702,425.72351277,0.00030136,120]
[399948219,1766927755261,436.97,0.00030136,120]
[399948220,1766927757759,168.73684322,0.00030136,120]
[399948221,1766927758397,406.85544551,0.00030136,120]
[399948222,1766927761433,500.0,0.00030136,120]
[399948223,1766927761681,500.0,0.00030136,120]
[399948224,1766927761916,500.0,0.00030136,120]
[399948225,1766927762194,500.0,0.00030136,120]
[399948226,1766927762457,500.0,0.00030136,120]
[399948227,1766927762701,500.0,0.00030136,120]
[399948228,1766927762931,500.0,0.00030136,120]
[399948229,1766927763169,500.0,0.00030136,120]
[399948230,1766927763448,500.0,0.00030136,120]
[399948231,1766927763673,500.0,0.00030136,120]
[399948232,1766927763899,352.93755205,0.00030136,120]
[399948233,1766927767768,20850.75115796,0.000301,120]
[399948234,1766927782683,500.0,0.00030136,120]
[399948235,1766927782894,312.40949385,0.00030136,120]
[399948236,1766927785340,305.66177686,0.00030136,120]
[399948237,1766927790851,452.7965204,0.00030136,120]
[399948238,1766927792217,493.95187548,0.00030136,120]
[399948239,1766927795452,404.53468408,0.00030136,120]
[399948240,1766927797572,410.03515767,0.00030136,120]
[399948241,1766927801593,406.4063914,0.00030136,120]
[399948242,1766927803637,406.12399864,0.00030136,120]
[399948243,1766927805306,255.9266759,0.00030136,120]
[399948244,1766927818463,439.71091727,0.00030136,120]
[399948245,1766927847476,500.0,0.00030136,120]
[399948246,1766927847742,309.15374584,0.00030136,120]
[399948247,1766927848832,480.31620084,0.00030136,120]
[399948248,1766927849674,406.82253872,0.00030136,120]
[399948249,1766927852294,407.95414934,0.00030136,120]
[399948250,1766927855976,614.35603128,0.00030136,120]
[399948251,1766927857336,455.16413872,0.00030136,120]
[399948252,1766927860015,416.84713527,0.00030136,120]
[399948253,1766927862018,547.97434733,0.00030136,120]
[399948254,1766927863731,638.16482464,0.00030136,120]
[399948255,1766927870285,403.5377265,0.00030136,120]
[399948256,1766927871453,369.79026144,0.00030136,120]
[399948257,1766927884124,638.76582952,0.00030136,120]
[399948258,1766927885283,500.0,0.00030136,120]
[399948259,1766927885556,295.45079425,0.00030136,120]
[399948260,1766927888467,500.0,0.00030136,120]
[399948261,1766927888833,500.0,0.00030136,120]
[399948262,1766927889076,500.0,0.00030136,120]
[399948263,1766927889311,500.0,0.00030136,120]
[399948264,1766927889563,477.75546703,0.00030136,120]
[399948265,1766927891659,500.0,0.00030136,120]
[399948266,1766927891905,500.0,0.00030136,120]
[399948267,1766927892327,500.0,0.00030136,120]
[399948268,1766927892408,500.0,0.00030136,120]
[399948269,1766927892673,254.77271816,0.00030136,120]
[399948270,1766927899232,409.05982068,0.00030136,120]
[399948271,1766927913475,190.15585915,0.00030136,120]
[399948272,1766927916780,412.41114472,0.00030136,120]
[399948273,1766927930848,295.85474167,0.00030136,120]
[399948274,1766927936817,350.0,0.00030136,120]
[399948275,1766927938008,408.5750632,0.00030136,120]
[399948276,1766927959036,448.52736638,0.00030136,120]
[399948277,1766927964433,159.37545751,0.00030136,120]
[399948278,1766927983942,231.86753081,0.00030136,120]
[399948279,1766927985836,503.02449063,0.00030136,120]
[399948280,1766927986730,415.95423232,0.00030136,120]
[399948281,1766927992249,201.03846204,0.00030136,120]
[399948306,1766928010511,403.60101392,0.00030136,120]
[399948307,1766928024078,150.0,0.00030136,120]
[399948308,1766928045184,416.45128041,0.00030136,120]
[399948310,1766928058744,256.98606338,0.00030136,120]
[399948311,1766928060477,408.07642773,0.00030136,120]
[399948312,1766928065499,406.13346072,0.00030136,120]
[399948314,1766928094707,413.4412223,0.00030136,120]
[399948315,1766928098389,569.0,0.00030137,120]
[399948316,1766928112948,428.70887664,0.00030136,120]
[399948317,1766928113138,425.49525816,0.00030136,120]
[399948318,1766928136485,500.0,0.00030136,120]
[399948319,1766928136713,211.87818919,0.00030136,120]
[399948321,1766928145647,415.29239669,0.00030136,120]
[399948322,1766928169423,434.85873522,0.00030136,120]
[399948323,1766928173067,458.12573719,0.00030136,120]
[399948324,1766928176457,461.12655603,0.00030136,120]
[399948325,1766928178063,409.71600111,0.00030136,120]
[399948326,1766928179002,348.10226786,0.00030136,120]
[399948327,1766928208832,423.77711375,0.00030136,120]
[399948328,1766928210944,603.5100547,0.00030136,120]
[399948329,1766928229274,317.38928704,0.00030136,120]
[399948330,1766928231082,418.24147369,0.00030136,120]
[399948331,1766928233751,330.84332013,0.00030136,120]
[399948332,1766928245665,400.0,0.00030136,120]
[399948334,1766928250808,429.21036412,0.00030136,120]
[399948335,1766928268733,402.98203963,0.00030136,120]
[399948336,1766928271999,324.69202163,0.00030136,120]
[399948337,1766928273786,402.31259677,0.00030136,120]
[399948338,1766928275882,406.94615046,0.00030136,120]
[399948339,1766928277646,400.0,0.00030136,120]
[399948340,1766928279598,500.0,0.00030136,120]
[399948341,1766928279822,503.33007785,0.00030136,120]
[399948342,1766928282644,410.61523847,0.00030136,120]
[399948343,1766928284758,412.24108179,0.00030136,120]
[399948344,1766928285707,425.95253781,0.00030136,120]
[399948345,1766928287547,413.13240698,0.00030136,120]
[399948346,1766928293004,442.7347619,0.00030136,120]
[399948348,1766928334598,402.98381529,0.00030136,120]
[399948349,1766928336149,408.47619843,0.00030136,120]
[399948350,1766928403632,295.95730883,0.00030136,120]
[399948352,1766928452984,500.0,0.00030136,120]
[399948353,1766928453214,500.8,0.00030136,120]
[399948390,1766928632278,-166.66,0.00015019,2]
[399948392,1766928632288,-166.66,0.00015335,2]
[399948395,1766928632298,-6000.0,0.000155,2]
[399948397,1766928632316,-166.66,0.00015651,2]
[399948399,1766928632326,-391.55,0.00015665,2]
[399948400,1766928632337,-999.0,0.00015959,3]
[399948401,1766928632347,-387.0,0.00015966,2]
[399948402,1766928632357,-166.66,0.00015967,2]
[399948403,1766928632368,-300.0,0.00015998,2]
[399948404,1766928632378,-1200.0,0.00015999,2]
[399948405,1766928632387,-150.0,0.00015999,2]
[399948406,1766928632396,-98420.09748413,0.00016,2]
[399948407,1766928632409,-1000.0,0.00016,2]
[399948408,1766928632428,-528.18091038,0.00016,2]
[399948409,1766928632439,-471.85303563,0.00016,2]
[399948410,1766928632448,-157.65566464,0.00016,2]
[399948411,1766928632462,-474.5612726,0.00016,2]
[399948412,1766928632473,-227.04565985,0.0001622,2]
[399948413,1766928632483,-166.66,0.00016284,2]
[399948414,1766928632503,-535.77451733,0.0001649,2]
[399948415,1766928632514,-151.0,0.0001649,2]
[399948417,1766928632523,-151.0,0.0001649,2]
[399948419,1766928632533,-151.0,0.0001649,2]
[399948421,1766928632542,-151.0,0.0001649,2]
[399948423,1766928632552,-151.0,0.0001649,2]
[399948425,1766928632562,-151.0,0.0001649,2]
[399948427,1766928632571,-151.0,0.0001649,2]
[399948429,1766928632585,-151.0,0.0001649,2]
[399948431,1766928632595,-151.0,0.0001649,2]
[399948433,1766928632604,-151.0,0.0001649,2]
[399948435,1766928632614,-151.0,0.0001649,2]
[399948437,1766928632623,-151.0,0.0001649,2]
[399948439,1766928632633,-151.0,0.0001649,2]
[399948441,1766928632642,-151.0,0.0001649,2]
[399948443,1766928632652,-151.0,0.0001649,2]
[399948445,1766928632661,-151.0,0.0001649,2]
[399948447,1766928632670,-151.0,0.0001649,2]
[399948449,1766928632679,-151.0,0.0001649,2]
[399948451,1766928632690,-283.79223484,0.0001649,2]
[399948453,1766928632700,-428.93780339,0.000165,2]
[399948455,1766928632709,-2163.22851199,0.000165,2]
[399948458,1766928632727,-7836.76148801,0.000165,2]
[399948460,1766928632736,-252.21887573,0.00016507,2]
[399948462,1766928632745,-200.52781593,0.00016507,2]
[399948464,1766928632755,-150.49271229,0.00016507,2]
[399948467,1766928632770,-255.00000005,0.00016507,2]
[399948469,1766928632781,-94.50728766,0.00016507,2]
[399948471,1766928632790,-520.27541986,0.00016507,2]
[399948501,1766928638650,-151.0,0.00016223,2]
[399948503,1766928638663,-151.0,0.00016223,2]
[399948504,1766928638672,-94.50401683,0.00016507,2]
[399948505,1766928638682,-104.28169552,0.00016507,2]
[399948519,1766928640610,-395.71830448,0.00016507,2]
[399948520,1766928640620,-500.0,0.00016507,2]
[399948521,1766928640629,-449.54469088,0.00016507,2]
[399948522,1766928640830,-50.45530912,0.00016507,2]
[399948523,1766928640841,-500.0,0.00016507,2]
[399948524,1766928640851,-500.0,0.00016507,2]
[399948525,1766928640861,-500.0,0.00016507,2]
[399948526,1766928640870,-500.0,0.00016507,2]
[399948527,1766928640879,-500.0,0.00016507,2]
[399948528,1766928640888,-500.0,0.00016507,2]
[399948529,1766928640898,-500.0,0.00016507,2]
[399948530,1766928640907,-500.0,0.00016507,2]
[399948531,1766928640916,-500.0,0.00016507,2]
[399948532,1766928640925,-500.0,0.00016507,2]
[399948533,1766928640934,-500.0,0.00016507,2]
[399948534,1766928640948,-500.0,0.00016507,2]
[399948535,1766928640959,-500.0,0.00016507,2]
[399948536,1766928640968,-510.24153987,0.00016507,2]
[399948537,1766928640978,-500.0,0.00016507,2]
[399948538,1766928640987,-500.0,0.00016507,2]
[399948539,1766928641002,-500.0,0.00016507,2]
[399948540,1766928641012,-500.0,0.00016507,2]
[399948541,1766928641021,-500.0,0.00016507,2]
[399948542,1766928641032,-500.0,0.00016507,2]
[399948543,1766928641042,-500.0,0.00016507,2]
[399948544,1766928641051,-500.0,0.00016507,2]
[399948545,1766928641061,-1000000.0,0.00016508,2]
[399948546,1766928641071,-166.66,0.000166,2]
[399948547,1766928641080,-2302.1,0.00016608,2]
[399948548,1766928641090,-216.99388743,0.0001666,2]
[399948549,1766928641099,-423.95017716,0.00016681,2]
[399948550,1766928641108,-500.0,0.00016699,2]
[399948551,1766928641118,-151.12490868,0.000167,2]
[399948552,1766928641127,-150.0,0.000167,2]
[399948553,1766928641137,-423.95017708,0.00016705,2]
[399948554,1766928641146,-501.0,0.00016726,2]
[399948555,1766928641155,-500.0,0.00016726,2]
[399948556,1766928641165,-423.95017708,0.0001673,2]
[399948557,1766928641174,-500.0,0.00016754,2]
[399948558,1766928641186,-423.95017708,0.00016754,2]
[399948559,1766928641195,-198.94,0.00016759,2]
[399948560,1766928641205,-151.15,0.00016765,2]
[399948561,1766928641214,-423.95017708,0.00016778,2]
[399948562,1766928641224,-500.0,0.00016781,2]
[399948563,1766928641233,-423.95017708,0.00016803,2]
[399948564,1766928641242,-500.0,0.00016809,2]
[399948565,1766928641251,-501.90830128,0.00016819,2]
[399948566,1766928641262,-423.95017708,0.00016827,2]
[399948567,1766928641271,-500.0,0.00016836,2]
[399948568,1766928641281,-423.95017708,0.00016851,2]
[399948569,1766928641290,-173.98935038,0.00016863,2]
[399948570,1766928641300,-1238.863,0.00016872,2]
[399948571,1766928641313,-185.259,0.00016872,2]
[399948572,1766928641322,-423.95017708,0.00016876,2]
[399948573,1766928641331,-151.12490868,0.000169,2]
[399948574,1766928641340,-423.95017708,0.000169,2]
[399948575,1766928641349,-3434.0,0.000169,2]
[399948576,1766928641358,-500.0,0.00016973,2]
[399948577,1766928641368,-500.0,0.00016973,2]
[399948578,1766928641376,-341.25,0.00016973,2]
[399948579,1766928641385,-413.88399981,0.00016973,2]
[399948580,1766928641394,-500.0,0.00016973,2]
[399948581,1766928641404,-500.0,0.00016973,2]
[399948582,1766928641415,-500.0,0.00016973,2]
[399948583,1766928641426,-500.0,0.00016973,2]
[399948584,1766928641435,-507.71318398,0.00016973,2]
[399948585,1766928641445,-6896.4375726,0.00016974,2]
[399948586,1766928641456,-432.0,0.00016977,2]
[399948587,1766928641466,-1264.0,0.00016977,2]
[399948588,1766928641487,-912.0,0.00016977,2]
[399948589,1766928641497,-1199.0,0.00016977,2]
[399948590,1766928641506,-613.0,0.00016977,2]
[399948591,1766928641515,-1610.0,0.00016977,2]
[399948592,1766928641525,-3460.0,0.00016977,2]
[399948593,1766928641535,-99796.39,0.00016986,2]
[399948594,1766928641545,-1711615.60080381,0.00017,2]
[399948642,1766928645709,-2219.4560495,0.00016977,2]
[399948676,1766928962579,500.0,0.00030136,120]
[399948677,1766928962786,500.0,0.00030136,120]
[399948678,1766928963022,500.0,0.00030136,120]
[399948679,1766928963252,500.0,0.00030136,120]
[399948680,1766928963495,500.0,0.00030136,120]
[399948681,1766928964094,500.0,0.00030136,120]
[399948682,1766928964322,500.0,0.00030136,120]
[399948683,1766928964559,472.28748792,0.00030136,120]
[399948684,1766929058868,161.17,7.897e-05,2]
[399948690,1766929303804,500.0,0.00030136,120]
[399948691,1766929304033,500.0,0.00030136,120]
[399948692,1766929304262,500.0,0.00030136,120]
[399948693,1766929304522,248.5653322,0.00030136,120]
[399948701,1766929767129,-678.32,0.00013699,2]
[399948702,1766929767152,-300.0,0.00015068,2]
[399948703,1766929767176,-250.0,0.00015068,2]
[399948704,1766929783175,250.83930928,0.00015042,2]
[399948706,1766929831441,-450.32,0.00015562,2]
[399948707,1766929831451,-672.13092848,0.00015582,2]
[399948708,1766929831499,-299.06715887,0.00015582,2]
[399948710,1766929831559,-280.21350229,0.00015582,2]
[399948711,1766929831620,-188.56241036,0.00015582,2]
[399948712,1766929831631,-184.99,0.00015582,2]
[399948713,1766929831641,-158.87,0.0001578,2]
[399948714,1766929831651,-300.0,0.00015799,2]
[399948715,1766929831661,-2.56716078,0.000158,2]
[399948716,1766929831673,-1826.92164788,0.000158,2]
[399948724,1766929839873,-176.55321301,0.00015799,2]
[399948725,1766929839884,-402.4970456,0.00015799,2]
[399948726,1766929839893,-500.0,0.00015799,2]
[399948727,1766929839903,-500.0,0.00015799,2]
[399948728,1766929839913,-500.0,0.00015799,2]
[399948729,1766929839924,-500.0,0.00015799,2]
[399948730,1766929839935,-510.24153987,0.00015799,2]
[399948731,1766929839945,-500.0,0.00015799,2]
[399948732,1766929839955,-500.0,0.00015799,2]
[399948733,1766929839964,-500.0,0.00015799,2]
[399948734,1766929839974,-500.0,0.00015799,2]
[399948735,1766929839985,-500.0,0.00015799,2]
[399948736,1766929839995,-500.0,0.00015799,2]
[399948737,1766929840007,-500.0,0.00015799,2]
[399948738,1766929840017,-500.0,0.00015799,2]
[399948739,1766929840026,-500.0,0.00015799,2]
[399948740,1766929840035,-500.0,0.00015799,2]
[399948741,1766929840047,-500.0,0.00015799,2]
[399948742,1766929840057,-500.0,0.00015799,2]
[399948743,1766929840068,-500.0,0.00015799,2]
[399948744,1766929840081,-500.0,0.00015799,2]
[399948745,1766929840090,-500.0,0.00015799,2]
[399948746,1766929840099,-500.0,0.00015799,2]
[399948747,1766929840108,-500.0,0.00015799,2]
[399948748,1766929840118,-998170.51119134,0.000158,2]
[399948750,1766929840127,-243.3759,0.000158,2]
[399948752,1766929840136,-5948.4783,0.000158,2]
[399948754,1766929840146,-247.74427979,0.00015811,2]
[399948756,1766929840155,-151.15,0.00015899,2]
[399948758,1766929840164,-198.94,0.00015911,2]
[399948760,1766929840173,-200.0,0.00015944,2]
[399948763,1766929840191,-151.0,0.00016042,2]
[399948765,1766929840202,-151.0,0.00016042,2]
[399948767,1766929840211,-151.0,0.00016046,2]
[399948769,1766929840220,-151.0,0.00016046,2]
[399948771,1766929840229,-151.0,0.0001605,2]
[399948773,1766929840239,-151.0,0.0001605,2]
[399948775,1766929840248,-151.0,0.0001605,2]
[399948777,1766929840257,-151.0,0.0001605,2]
[399948779,1766929840266,-159.91325088,0.00016137,2]
[399948781,1766929840276,-151.15,0.00016173,2]
[399948783,1766929840286,-150.0,0.00016192,2]
[399948785,1766929840296,-159.91325088,0.00016219,2]
[399948787,1766929840305,-554.53,0.00016278,2]
[399948789,1766929840315,-300.0,0.00016278,2]
[399948791,1766929840324,-159.91325088,0.00016301,2]
[399948793,1766929840334,-151.12490865,0.00016316,2]
[399948795,1766929840343,-159.91325088,0.00016356,2]
[399948810,1766929840531,-159.91325088,0.00016438,2]
[399948811,1766929840591,-5891.6,0.00016438,2]
[399948812,1766929840601,-151.17,0.00016447,2]
[399948813,1766929840610,-2441.8,0.000165,2]
[399948814,1766929840622,-159.91325088,0.00016521,2]
[399948815,1766929840632,-159.91325088,0.00016575,2]
[399948816,1766929840641,-501.90830128,0.00016602,2]
[399948817,1766929840651,-2302.1,0.00016636,2]
[399948818,1766929840661,-159.91325088,0.00016658,2]
[399948819,1766929840670,-216.99388743,0.0001666,2]
[399948820,1766929840678,-500.0,0.00016699,2]
[399948821,1766929840687,-159.91325088,0.00016712,2]
[399948822,1766929840698,-500.0,0.00016726,2]
[399948823,1766929840708,-500.0,0.00016754,2]
[399948824,1766929840719,-500.0,0.00016781,2]
[399948825,1766929840730,-159.91325088,0.00016795,2]
[399948826,1766929840739,-500.0,0.00016809,2]
[399948827,1766929840749,-500.0,0.00016836,2]
[399948828,1766929840761,-173.98935038,0.00016863,2]
[399948829,1766929840771,-168.0,0.0001687,2]
[399948830,1766929840781,-159.91325088,0.00016877,2]
[399948831,1766929840792,-168.0,0.00016899,2]
[399948832,1766929840802,-1745.43336728,0.000169,2]
[399948833,1766929840815,-3434.0,0.000169,2]
[399948834,1766929840825,-55351.0,0.00016959,2]
[399948835,1766929840834,-500.0,0.00016973,2]
[399948836,1766929840845,-500.0,0.00016973,2]
[399948837,1766929840856,-413.88399981,0.00016973,2]
[399948838,1766929840866,-341.25,0.00016973,2]
[399948839,1766929840876,-500.0,0.00016973,2]
[399948840,1766929840886,-500.0,0.00016973,2]
[399948841,1766929840896,-500.0,0.00016973,2]
[399948842,1766929840905,-507.71318398,0.00016973,2]
[399948843,1766929840917,-613.0,0.00016977,2]
[399948844,1766929840927,-3460.0,0.00016977,2]
[399948845,1766929840937,-1610.0,0.00016977,2]
[399948846,1766929840947,-1327.0,0.00016977,2]
[399948847,1766929840956,-432.0,0.00016977,2]
[399948848,1766929840965,-1264.0,0.00016977,2]
[399948849,1766929840975,-4810.0,0.00016977,2]
[399948850,1766929840984,-2431.0,0.00016977,2]
[399948851,1766929840994,-564.0,0.00016977,2]
[399948852,1766929841008,-365.67138507,0.00016977,2]
[399948853,1766929841017,-388.44895572,0.00016977,2]
[399948854,1766929841027,-5653.9034918,0.00016997,2]
[399948855,1766929841039,-5417.8209063,0.00016997,2]
[399948856,1766929841050,-58601.2359084,0.00016997,2]
[399948857,1766929841060,-13168.714946,0.00016997,2]
[399948858,1766929841068,-1882.156629,0.00016997,2]
[399948859,1766929841081,-2571906.37184629,0.00017,2]
[399948862,1766929843372,-255.24832003,0.00017,2]
[399948972,1766930810392,284.88,0.00030137,120]
[399948973,1766930819124,-1312.869,0.00015483,2]
[399948974,1766930819145,-184.99,0.00015483,2]
[399948975,1766930819165,-167.61232456,0.00015684,2]
[399948976,1766930819186,-1200.0,0.00015698,2]
[399948977,1766930819207,-300.0,0.00015698,2]
[399948978,1766930819234,-300.0,0.00015698,2]
[399948979,1766930819257,-243.3759,0.00015699,2]
[399948980,1766930819284,-1655.98791561,0.00015699,2]
[399948983,1766930951795,272.87798356,0.00030136,120]
[399948990,1766931031595,-300.0,0.00015697,2]
[399948991,1766931031606,-633.25985405,0.00015698,2]
[399948992,1766931031653,-3455.44836013,0.00015698,2]
[399948993,1766931031665,-56273.92643325,0.00015698,2]
[399948994,1766931031677,-264848.49111885,0.00015698,2]
[399948995,1766931031688,-1254.41808677,0.00015698,2]
[399948996,1766931031699,-500.0,0.00015698,2]
[399948997,1766931031711,-1932.135623,0.00015698,2]
[399948998,1766931031836,-18441.4,0.00015698,2]
[399948999,1766931031847,-503.21044542,0.00015698,2]
[399949000,1766931031859,-6505.90959998,0.00015698,2]
[399949001,1766931031871,-2639.10796296,0.00015698,2]
[399949002,1766931031882,-1181.12922722,0.00015698,2]
[399949008,1766931037736,-262.91051537,0.00015697,2]
[399949009,1766931037746,-397.24028463,0.00015697,2]
[399949010,1766931037794,-5.25676097,0.00015697,2]
[399949011,1766931037803,-500.0,0.00015697,2]
[399949012,1766931037813,-500.0,0.00015697,2]
[399949013,1766931037823,-500.0,0.00015697,2]
[399949014,1766931037832,-500.0,0.00015697,2]
[399949015,1766931037842,-500.0,0.00015697,2]
[399949016,1766931037851,-231.1291152,0.00015697,2]
[399949017,1766931037863,-268.8708848,0.00015697,2]
[399949018,1766931037872,-500.0,0.00015697,2]
[399949019,1766931037881,-500.0,0.00015697,2]
[399949020,1766931037891,-194.7068752,0.00015697,2]
[399949106,1766931039739,-305.2931248,0.00015697,2]
[399949107,1766931039749,-500.0,0.00015697,2]
[399949108,1766931039759,-500.0,0.00015697,2]
[399949109,1766931039768,-500.0,0.00015697,2]
[399949110,1766931039777,-500.0,0.00015697,2]
[399949111,1766931039787,-500.0,0.00015697,2]
[399949112,1766931039796,-500.0,0.00015697,2]
[399949113,1766931039805,-500.0,0.00015697,2]
[399949114,1766931039814,-500.0,0.00015697,2]
[399949115,1766931039823,-500.0,0.00015697,2]
[399949116,1766931039833,-500.0,0.00015697,2]
[399949117,1766931039842,-500.0,0.00015697,2]
[399949118,1766931039851,-500.0,0.00015697,2]
[399949119,1766931039861,-500.0,0.00015697,2]
[399949120,1766931039871,-500.0,0.00015697,2]
[399949121,1766931039880,-500.0,0.00015697,2]
[399949122,1766931039890,-500.0,0.00015697,2]
[399949123,1766931039899,-363.93246955,0.00015697,2]
[399949124,1766931039909,-500.0,0.00015697,2]
[399949125,1766931039918,-500.0,0.00015697,2]
[399949126,1766931039928,-500.0,0.00015697,2]
[399949127,1766931039937,-500.0,0.00015697,2]
[399949128,1766931039947,-500.0,0.00015697,2]
[399949129,1766931039956,-3549.57848194,0.00015698,2]
[399949130,1766931039975,-786.19552507,0.00015698,2]
[399949131,1766931039986,-468.1371995,0.00015698,2]
[399949132,1766931039997,-992.1045669,0.00015698,2]
[399949133,1766931040008,-1557.38467929,0.00015698,2]
[399949134,1766931040019,-634478.16283567,0.00015698,2]
[399949135,1766931040028,-153.09914487,0.000157,2]
[399949136,1766931040037,-245.03581453,0.00015754,2]
[399949137,1766931040047,-245.03581453,0.00015754,2]
[399949138,1766931040055,-245.28085034,0.00015754,2]
[399949139,1766931040064,-221.52529679,0.00015798,5]
[399949140,1766931040074,-1117.45821686,0.00015798,5]
[399949141,1766931040083,-151.15,0.00015798,2]
[399949142,1766931040092,-154.84017486,0.00015817,2]
[399949143,1766931040101,-500.0,0.00015863,2]
[399949144,1766931040110,-500.0,0.0001589,2]
[399949145,1766931040119,-1265.33723211,0.00015917,2]
[399949146,1766931040128,-500.0,0.00015918,2]
[399949147,1766931040138,-500.0,0.00015945,2]
[399949148,1766931040147,-500.0,0.00015973,2]
[399949149,1766931040156,-500.0,0.00016,2]
[399949150,1766931040165,-151.0,0.00016013,2]
[399949151,1766931040174,-151.0,0.00016013,2]
[399949152,1766931040184,-1265.33723208,0.00016026,2]
[399949153,1766931040192,-173.98935038,0.00016027,2]
[399949154,1766931040201,-151.15,0.00016072,2]
[399949155,1766931040210,-153.09914485,0.000161,2]
[399949156,1766931040219,-1265.33723208,0.00016135,2]
[399949157,1766931040229,-159.91325088,0.00016137,2]
[399949158,1766931040238,-554.53,0.000162,2]
[399949160,1766931040247,-150.0,0.000162,2]
[399949161,1766931040256,-300.0,0.000162,2]